[Event "Titled Tuesday Blitz November 08 Late 2022"]
[White "Sibilio, Mario"]
[Black "Lopez Martinez, Josep Manuel"]
[WhiteFideId "800422"]
[BlackFideId "2212943"]
[WhiteElo "2251"]
[BlackElo "2471"]
[Result "0-1"]
[Round "03"]
[TimeControl "180+1"]
[Date "2022.11.09"]
[WhiteClock "0:00:02"]
[BlackClock "0:00:16"]

1. e4 {[%clk 0:03:00]}  c5 {[%clk 0:02:59]} 2. Nf3 {[%clk 0:02:58]}  d6 {[%clk 0:02:59]} 3. b3 {[%clk 0:02:58]}  Nc6 {[%clk 0:02:57]} 4. Bb2 {[%clk 0:02:56]}  Nf6 {[%clk 0:02:52]} 5. e5 {[%clk 0:02:55]}  dxe5 {[%clk 0:02:51]} 6. Nxe5 {[%clk 0:02:54]}  Bd7 {[%clk 0:02:52]} 7. f4 {[%clk 0:02:51]}  e6 {[%clk 0:02:49]} 8. Na3 {[%clk 0:02:44]}  Bd6 {[%clk 0:02:45]} 9. Nac4 {[%clk 0:02:43]}  Bb8 {[%clk 0:02:42]} 10. Qf3 {[%clk 0:02:31]}  O-O {[%clk 0:02:40]} 11. a3 {[%clk 0:02:26]}  Nd5 {[%clk 0:02:36]} 12. Bd3 {[%clk 0:02:21]}  Nd4 {[%clk 0:02:30]} 13. Qh3 {[%clk 0:02:11]}  f5 {[%clk 0:02:24]} 14. O-O {[%clk 0:02:07]}  b5 {[%clk 0:02:21]} 15. Nxd7 {[%clk 0:02:01]}  Qxd7 {[%clk 0:02:21]} 16. Ne5 {[%clk 0:01:58]}  Qb7 {[%clk 0:02:10]} 17. Bxd4 {[%clk 0:01:56]}  cxd4 {[%clk 0:02:09]} 18. Rae1 {[%clk 0:01:55]}  Bd6 {[%clk 0:02:02]} 19. g4 {[%clk 0:01:46]}  g6 {[%clk 0:02:00]} 20. Re2 {[%clk 0:01:42]}  Bxa3 {[%clk 0:01:54]} 21. gxf5 {[%clk 0:01:24]}  exf5 {[%clk 0:01:53]} 22. Rg2 {[%clk 0:01:18]}  Ne7 {[%clk 0:01:41]} 23. Qh6 {[%clk 0:01:08]}  Bd6 {[%clk 0:01:38]} 24. Nf3 {[%clk 0:00:56]}  Nd5 {[%clk 0:01:36]} 25. Nxd4 {[%clk 0:00:32]}  Bc5 {[%clk 0:01:32]} 26. c3 {[%clk 0:00:31]}  Bxd4+ {[%clk 0:01:26]} 27. cxd4 {[%clk 0:00:31]}  Qb6 {[%clk 0:01:27]} 28. Rg3 {[%clk 0:00:25]}  Qxd4+ {[%clk 0:01:24]} 29. Kg2 {[%clk 0:00:25]}  a6 {[%clk 0:01:18]} 30. h4 {[%clk 0:00:21]}  Qg7 {[%clk 0:01:09]} 31. Qg5 {[%clk 0:00:20]}  Nf6 {[%clk 0:01:01]} 32. Bxf5 {[%clk 0:00:17]}  Rad8 {[%clk 0:00:54]} 33. Be6+ {[%clk 0:00:15]}  Kh8 {[%clk 0:00:54]} 34. d3 {[%clk 0:00:15]}  Nh5 {[%clk 0:00:50]} 35. Re3 {[%clk 0:00:14]}  Qf6 {[%clk 0:00:43]} 36. Qxf6+ {[%clk 0:00:09]}  Rxf6 {[%clk 0:00:42]} 37. f5 {[%clk 0:00:08]}  Rd4 {[%clk 0:00:30]} 38. fxg6 {[%clk 0:00:05]}  Rxg6+ {[%clk 0:00:20]} 39. Kf2 {[%clk 0:00:02]}  Nf4 {[%clk 0:00:16]} 0-1


[Site "https://www.chess.com"]

[Event "Titled Tuesday Blitz November 08 Late 2022"]
[White "Storey, Charles H"]
[Black "Zeynalli, Rashad"]
[WhiteFideId "406686"]
[BlackFideId "13403320"]
[WhiteElo "2484"]
[BlackElo "2692"]
[Result "1-0"]
[Round "03"]
[TimeControl "180+1"]
[Date "2022.11.09"]
[WhiteClock "0:00:18"]
[BlackClock "0:00:02"]

1. c4 {[%clk 0:02:52]}  f5 {[%clk 0:02:59]} 2. g3 {[%clk 0:02:52]}  Nf6 {[%clk 0:02:59]} 3. Bg2 {[%clk 0:02:52]}  g6 {[%clk 0:03:00]} 4. Nf3 {[%clk 0:02:51]}  Bg7 {[%clk 0:03:00]} 5. d4 {[%clk 0:02:51]}  O-O {[%clk 0:03:00]} 6. Nc3 {[%clk 0:02:52]}  d6 {[%clk 0:03:00]} 7. O-O {[%clk 0:02:48]}  Qe8 {[%clk 0:03:00]} 8. d5 {[%clk 0:02:48]}  a5 {[%clk 0:02:58]} 9. Be3 {[%clk 0:02:47]}  Na6 {[%clk 0:02:51]} 10. Bd4 {[%clk 0:02:47]}  Bd7 {[%clk 0:02:51]} 11. Re1 {[%clk 0:02:44]}  h6 {[%clk 0:02:38]} 12. Qd2 {[%clk 0:02:35]}  Qf7 {[%clk 0:02:16]} 13. e4 {[%clk 0:02:22]}  Nxe4 {[%clk 0:02:11]} 14. Nxe4 {[%clk 0:02:22]}  fxe4 {[%clk 0:02:11]} 15. Bxg7 {[%clk 0:02:17]}  Qxg7 {[%clk 0:02:09]} 16. Rxe4 {[%clk 0:02:12]}  Nc5 {[%clk 0:02:09]} 17. Re3 {[%clk 0:02:10]}  e5 {[%clk 0:01:53]} 18. dxe6 {[%clk 0:02:08]}  Bxe6 {[%clk 0:01:52]} 19. Rxe6 {[%clk 0:01:53]}  Nxe6 {[%clk 0:01:49]} 20. Qd5 {[%clk 0:01:53]}  Qf7 {[%clk 0:01:45]} 21. Qxb7 {[%clk 0:01:26]}  Nc5 {[%clk 0:01:33]} 22. Qc6 {[%clk 0:01:02]}  Rab8 {[%clk 0:00:40]} 23. b3 {[%clk 0:00:59]}  Rb6 {[%clk 0:00:36]} 24. Qd5 {[%clk 0:00:59]}  Qxd5 {[%clk 0:00:37]} 25. cxd5 {[%clk 0:01:00]}  a4 {[%clk 0:00:34]} 26. bxa4 {[%clk 0:00:57]}  Nxa4 {[%clk 0:00:34]} 27. Nd4 {[%clk 0:00:57]}  Rb2 {[%clk 0:00:31]} 28. f4 {[%clk 0:00:57]}  Nc5 {[%clk 0:00:25]} 29. Ne6 {[%clk 0:00:55]}  Ra8 {[%clk 0:00:23]} 30. Nxc5 {[%clk 0:00:52]}  dxc5 {[%clk 0:00:24]} 31. d6 {[%clk 0:00:52]}  Rc8 {[%clk 0:00:19]} 32. d7 {[%clk 0:00:45]}  Rd8 {[%clk 0:00:19]} 33. Bc6 {[%clk 0:00:42]}  Rb6 {[%clk 0:00:19]} 34. Re1 {[%clk 0:00:41]}  Kf7 {[%clk 0:00:16]} 35. Re8 {[%clk 0:00:40]}  Rbb8 {[%clk 0:00:17]} 36. Kf2 {[%clk 0:00:26]}  c4 {[%clk 0:00:16]} 37. Ke3 {[%clk 0:00:25]}  g5 {[%clk 0:00:09]} 38. Kd4 {[%clk 0:00:20]}  gxf4 {[%clk 0:00:07]} 39. gxf4 {[%clk 0:00:20]}  Kf6 {[%clk 0:00:06]} 40. Kxc4 {[%clk 0:00:19]}  Kf5 {[%clk 0:00:06]} 41. Kd5 {[%clk 0:00:18]}  Kxf4 {[%clk 0:00:05]} 42. Ke6 {[%clk 0:00:18]}  h5 {[%clk 0:00:02]} 43. Ke7 {[%clk 0:00:18]} 1-0


[Site "https://www.chess.com"]

[Event "Titled Tuesday Blitz November 08 Late 2022"]
[White "Stoyanov, Tsvetan"]
[Black "Derige Kane, Yan"]
[WhiteFideId "2917173"]
[BlackFideId "20665431"]
[WhiteElo "2740"]
[BlackElo "2500"]
[Result "1-0"]
[Round "03"]
[TimeControl "180+1"]
[Date "2022.11.09"]
[WhiteClock "0:00:36"]
[BlackClock "0:00:03"]

1. e4 {[%clk 0:02:58]}  e5 {[%clk 0:02:53]} 2. Nf3 {[%clk 0:02:58]}  Nc6 {[%clk 0:02:54]} 3. Nc3 {[%clk 0:02:58]}  Nf6 {[%clk 0:02:54]} 4. d4 {[%clk 0:02:59]}  exd4 {[%clk 0:02:54]} 5. Nxd4 {[%clk 0:03:00]}  Bb4 {[%clk 0:02:54]} 6. Nxc6 {[%clk 0:03:00]}  bxc6 {[%clk 0:02:55]} 7. Bd3 {[%clk 0:03:01]}  O-O {[%clk 0:02:55]} 8. O-O {[%clk 0:03:01]}  d5 {[%clk 0:02:56]} 9. exd5 {[%clk 0:03:01]}  cxd5 {[%clk 0:02:57]} 10. h3 {[%clk 0:03:02]}  c6 {[%clk 0:02:57]} 11. Qf3 {[%clk 0:03:02]}  h6 {[%clk 0:02:44]} 12. Bf4 {[%clk 0:02:58]}  Bd6 {[%clk 0:02:41]} 13. Rad1 {[%clk 0:02:56]}  Be6 {[%clk 0:02:40]} 14. b3 {[%clk 0:02:50]}  c5 {[%clk 0:02:31]} 15. Rfe1 {[%clk 0:02:44]}  d4 {[%clk 0:02:31]} 16. Bxd6 {[%clk 0:02:36]}  Qxd6 {[%clk 0:02:29]} 17. Ne4 {[%clk 0:02:36]}  Nxe4 {[%clk 0:02:24]} 18. Qxe4 {[%clk 0:02:36]}  g6 {[%clk 0:02:25]} 19. Qe5 {[%clk 0:02:29]}  Qxe5 {[%clk 0:01:04]} 20. Rxe5 {[%clk 0:02:30]}  Rac8 {[%clk 0:01:04]} 21. Bxg6 {[%clk 0:02:30]}  Bxb3 {[%clk 0:00:52]} 22. Bf5 {[%clk 0:02:17]}  Be6 {[%clk 0:00:52]} 23. Bxe6 {[%clk 0:02:14]}  fxe6 {[%clk 0:00:50]} 24. Rxe6 {[%clk 0:02:15]}  Kg7 {[%clk 0:00:51]} 25. Rd3 {[%clk 0:02:14]}  Rf6 {[%clk 0:00:44]} 26. Re7+ {[%clk 0:02:08]}  Rf7 {[%clk 0:00:43]} 27. Rg3+ {[%clk 0:02:08]}  Kf6 {[%clk 0:00:37]} 28. Re4 {[%clk 0:02:08]}  Rb7 {[%clk 0:00:35]} 29. Rh4 {[%clk 0:01:49]}  Rb2 {[%clk 0:00:29]} 30. Rxh6+ {[%clk 0:01:47]}  Kf7 {[%clk 0:00:29]} 31. Rh7+ {[%clk 0:01:39]}  Ke6 {[%clk 0:00:27]} 32. c3 {[%clk 0:01:37]}  Rxa2 {[%clk 0:00:22]} 33. cxd4 {[%clk 0:01:08]}  cxd4 {[%clk 0:00:10]} 34. Rd3 {[%clk 0:01:08]}  Rc1+ {[%clk 0:00:08]} 35. Kh2 {[%clk 0:01:07]}  Rcc2 {[%clk 0:00:07]} 36. Rxd4 {[%clk 0:01:00]}  Rxf2 {[%clk 0:00:08]} 37. Rg4 {[%clk 0:00:58]}  a5 {[%clk 0:00:08]} 38. h4 {[%clk 0:00:58]}  a4 {[%clk 0:00:09]} 39. h5 {[%clk 0:00:59]}  a3 {[%clk 0:00:09]} 40. h6 {[%clk 0:00:59]}  Rf6 {[%clk 0:00:09]} 41. Rh8 {[%clk 0:00:56]}  Kf7 {[%clk 0:00:06]} 42. Rg7+ {[%clk 0:00:55]}  Ke6 {[%clk 0:00:05]} 43. Re8+ {[%clk 0:00:53]}  Kf5 {[%clk 0:00:05]} 44. h7 {[%clk 0:00:53]}  Rh6+ {[%clk 0:00:05]} 45. Kg3 {[%clk 0:00:54]}  Kf6 {[%clk 0:00:06]} 46. Ra7 {[%clk 0:00:46]}  Rb2 {[%clk 0:00:06]} 47. Ra6+ {[%clk 0:00:37]}  Kg7 {[%clk 0:00:02]} 48. Rxh6 {[%clk 0:00:37]}  Rb3+ {[%clk 0:00:03]} 49. Kh2 {[%clk 0:00:36]} 1-0


[Site "https://www.chess.com"]

[Event "Titled Tuesday Blitz November 08 Late 2022"]
[White "Svane, Rasmus"]
[Black "Bazeev, German"]
[WhiteFideId "4657101"]
[BlackFideId "24119350"]
[WhiteElo "2674"]
[BlackElo "2493"]
[Result "1-0"]
[Round "03"]
[TimeControl "180+1"]
[Date "2022.11.08"]
[WhiteClock "0:00:38"]
[BlackClock "0:00:18"]

1. Nf3 {[%clk 0:03:00]}  Nf6 {[%clk 0:02:51]} 2. g3 {[%clk 0:03:00]}  d5 {[%clk 0:02:51]} 3. Bg2 {[%clk 0:02:59]}  c6 {[%clk 0:02:52]} 4. O-O {[%clk 0:03:00]}  Bg4 {[%clk 0:02:53]} 5. h3 {[%clk 0:03:00]}  Bh5 {[%clk 0:02:50]} 6. d4 {[%clk 0:02:47]}  Nbd7 {[%clk 0:02:48]} 7. c4 {[%clk 0:02:46]}  e6 {[%clk 0:02:46]} 8. cxd5 {[%clk 0:02:47]}  cxd5 {[%clk 0:02:37]} 9. Qb3 {[%clk 0:02:45]}  Qb6 {[%clk 0:02:34]} 10. Nc3 {[%clk 0:02:41]}  Rc8 {[%clk 0:02:31]} 11. Bf4 {[%clk 0:02:15]}  Be7 {[%clk 0:02:17]} 12. Ne5 {[%clk 0:01:53]}  O-O {[%clk 0:01:43]} 13. g4 {[%clk 0:01:50]}  Bg6 {[%clk 0:01:42]} 14. g5 {[%clk 0:01:50]}  Nh5 {[%clk 0:01:26]} 15. Nxd7 {[%clk 0:01:44]}  Qxb3 {[%clk 0:01:19]} 16. axb3 {[%clk 0:01:45]}  Nxf4 {[%clk 0:01:19]} 17. Nxf8 {[%clk 0:01:45]}  Kxf8 {[%clk 0:01:10]} 18. Rxa7 {[%clk 0:01:45]}  Bxg5 {[%clk 0:01:09]} 19. Rxb7 {[%clk 0:01:41]}  Bf5 {[%clk 0:01:08]} 20. Ra1 {[%clk 0:01:38]}  Bf6 {[%clk 0:01:02]} 21. e3 {[%clk 0:01:28]}  Nd3 {[%clk 0:01:01]} 22. Raa7 {[%clk 0:01:26]}  Bg6 {[%clk 0:01:01]} 23. Nb5 {[%clk 0:01:17]}  Bh4 {[%clk 0:00:57]} 24. Nd6 {[%clk 0:01:00]}  Bxf2+ {[%clk 0:00:56]} 25. Kh2 {[%clk 0:00:57]}  Rd8 {[%clk 0:00:51]} 26. Nxf7 {[%clk 0:00:58]}  Rc8 {[%clk 0:00:51]} 27. Ng5 {[%clk 0:00:52]}  Bxe3 {[%clk 0:00:50]} 28. Nxe6+ {[%clk 0:00:52]}  Kg8 {[%clk 0:00:50]} 29. Rxg7+ {[%clk 0:00:51]}  Kh8 {[%clk 0:00:51]} 30. Bxd5 {[%clk 0:00:42]}  Nf4 {[%clk 0:00:21]} 31. Nxf4 {[%clk 0:00:39]}  Bxf4+ {[%clk 0:00:21]} 32. Kg2 {[%clk 0:00:39]}  Be3 {[%clk 0:00:18]} 33. Rgc7 {[%clk 0:00:38]}  Rd8 {[%clk 0:00:18]} 34. Ra8 {[%clk 0:00:38]} 1-0


[Site "https://www.chess.com"]

[Event "Titled Tuesday Blitz November 08 Late 2022"]
[White "Thiel, Thomas"]
[Black "Myers, Dominique"]
[WhiteFideId "4615964"]
[BlackFideId "2041715"]
[WhiteElo "2197"]
[BlackElo "1986"]
[Result "1-0"]
[Round "03"]
[TimeControl "180+1"]
[Date "2022.11.09"]
[WhiteClock "0:01:38"]
[BlackClock "0:01:47"]

1. e4 {[%clk 0:03:00]}  e5 {[%clk 0:02:59]} 2. Nf3 {[%clk 0:02:58]}  Nc6 {[%clk 0:02:59]} 3. d4 {[%clk 0:02:57]}  exd4 {[%clk 0:03:00]} 4. Nxd4 {[%clk 0:02:56]}  Qh4 {[%clk 0:02:58]} 5. Nc3 {[%clk 0:02:54]}  Bb4 {[%clk 0:02:58]} 6. Be2 {[%clk 0:02:54]}  Nf6 {[%clk 0:02:56]} 7. O-O {[%clk 0:02:48]}  d6 {[%clk 0:02:54]} 8. Ndb5 {[%clk 0:02:45]}  Ba5 {[%clk 0:02:53]} 9. Nd5 {[%clk 0:02:43]}  Nxd5 {[%clk 0:02:48]} 10. exd5 {[%clk 0:02:44]}  Ne5 {[%clk 0:02:45]} 11. Bd2 {[%clk 0:02:41]}  Bb6 {[%clk 0:02:44]} 12. Be3 {[%clk 0:02:41]}  O-O {[%clk 0:02:36]} 13. Bxb6 {[%clk 0:02:38]}  cxb6 {[%clk 0:02:36]} 14. Nxd6 {[%clk 0:02:37]}  Rd8 {[%clk 0:02:36]} 15. Nb5 {[%clk 0:02:29]}  Bg4 {[%clk 0:02:32]} 16. Qd4 {[%clk 0:02:17]}  Qh5 {[%clk 0:02:14]} 17. Bxg4 {[%clk 0:02:16]}  Nxg4 {[%clk 0:02:15]} 18. h3 {[%clk 0:02:15]}  Qxd5 {[%clk 0:02:09]} 19. Qxd5 {[%clk 0:02:12]}  Rxd5 {[%clk 0:02:09]} 20. Nc7 {[%clk 0:02:12]}  Nf6 {[%clk 0:02:04]} 21. Nxa8 {[%clk 0:02:10]}  Rc5 {[%clk 0:02:04]} 22. c3 {[%clk 0:02:09]}  Rc8 {[%clk 0:02:04]} 23. Rfe1 {[%clk 0:02:02]}  Rxa8 {[%clk 0:02:03]} 24. Re7 {[%clk 0:02:03]}  Rb8 {[%clk 0:02:02]} 25. Rae1 {[%clk 0:02:01]}  Kf8 {[%clk 0:02:01]} 26. c4 {[%clk 0:01:56]}  a6 {[%clk 0:01:59]} 27. b3 {[%clk 0:01:55]}  b5 {[%clk 0:01:58]} 28. cxb5 {[%clk 0:01:55]}  axb5 {[%clk 0:01:59]} 29. R7e5 {[%clk 0:01:54]}  Ra8 {[%clk 0:01:58]} 30. Rxb5 {[%clk 0:01:53]}  Rxa2 {[%clk 0:01:58]} 31. Rxb7 {[%clk 0:01:53]}  g6 {[%clk 0:01:58]} 32. Ree7 {[%clk 0:01:49]}  Nh5 {[%clk 0:01:54]} 33. Rxf7+ {[%clk 0:01:48]}  Kg8 {[%clk 0:01:54]} 34. Rfc7 {[%clk 0:01:43]}  Ra8 {[%clk 0:01:54]} 35. Rxh7 {[%clk 0:01:40]}  Nf6 {[%clk 0:01:47]} 36. Rbg7+ {[%clk 0:01:37]}  Kf8 {[%clk 0:01:47]} 37. Rh8+ {[%clk 0:01:37]}  Kxg7 {[%clk 0:01:47]} 38. Rxa8 {[%clk 0:01:38]} 1-0


[Site "https://www.chess.com"]

[Event "Titled Tuesday Blitz November 08 Late 2022"]
[White "Urbina Perez, Juan Antonio"]
[Black "Ramirez, Maria Eugenia"]
[WhiteFideId "2217368"]
[BlackFideId "3301680"]
[WhiteElo "2197"]
[BlackElo "1941"]
[Result "0-1"]
[Round "03"]
[TimeControl "180+1"]
[Date "2022.11.09"]
[WhiteClock "0:01:00"]
[BlackClock "0:00:57"]

1. e4 {[%clk 0:02:55]}  e5 {[%clk 0:02:59]} 2. Nf3 {[%clk 0:02:54]}  Nc6 {[%clk 0:02:59]} 3. d4 {[%clk 0:02:54]}  exd4 {[%clk 0:02:58]} 4. Nxd4 {[%clk 0:02:55]}  Qh4 {[%clk 0:02:57]} 5. Nc3 {[%clk 0:02:48]}  Bb4 {[%clk 0:02:56]} 6. Be3 {[%clk 0:02:33]}  Qxe4 {[%clk 0:02:51]} 7. Nxc6 {[%clk 0:02:29]}  Bxc3+ {[%clk 0:02:43]} 8. bxc3 {[%clk 0:02:27]}  Qxc6 {[%clk 0:02:41]} 9. Bd4 {[%clk 0:02:18]}  Nf6 {[%clk 0:02:38]} 10. Qe2+ {[%clk 0:02:17]}  Qe6 {[%clk 0:02:37]} 11. Bxf6 {[%clk 0:02:15]}  gxf6 {[%clk 0:02:35]} 12. O-O-O {[%clk 0:02:15]}  Qxe2 {[%clk 0:02:32]} 13. Bxe2 {[%clk 0:02:16]}  d6 {[%clk 0:02:32]} 14. Bb5+ {[%clk 0:02:12]}  c6 {[%clk 0:02:31]} 15. Rhe1+ {[%clk 0:02:13]}  Be6 {[%clk 0:02:29]} 16. Bd3 {[%clk 0:02:14]}  Kd7 {[%clk 0:02:27]} 17. a3 {[%clk 0:02:14]}  Rae8 {[%clk 0:02:25]} 18. f4 {[%clk 0:02:13]}  h6 {[%clk 0:02:21]} 19. c4 {[%clk 0:02:08]}  Bg4 {[%clk 0:02:16]} 20. Rxe8 {[%clk 0:02:07]}  Rxe8 {[%clk 0:02:15]} 21. Rd2 {[%clk 0:02:07]}  Kc7 {[%clk 0:02:07]} 22. h3 {[%clk 0:02:05]}  Bd7 {[%clk 0:01:57]} 23. f5 {[%clk 0:02:05]}  Re5 {[%clk 0:01:54]} 24. Rf2 {[%clk 0:02:05]}  a6 {[%clk 0:01:50]} 25. Rf4 {[%clk 0:02:03]}  b5 {[%clk 0:01:45]} 26. cxb5 {[%clk 0:02:01]}  axb5 {[%clk 0:01:44]} 27. Kd2 {[%clk 0:02:00]}  c5 {[%clk 0:01:39]} 28. c3 {[%clk 0:02:00]}  c4 {[%clk 0:01:38]} 29. Bc2 {[%clk 0:02:00]}  Bc6 {[%clk 0:01:36]} 30. Rg4 {[%clk 0:01:56]}  Bd7 {[%clk 0:01:32]} 31. Rg7 {[%clk 0:01:52]}  Bxf5 {[%clk 0:01:23]} 32. Rxf7+ {[%clk 0:01:52]}  Kc6 {[%clk 0:01:23]} 33. Bd1 {[%clk 0:01:45]}  Rd5+ {[%clk 0:01:17]} 34. Kc1 {[%clk 0:01:43]}  Be4 {[%clk 0:01:13]} 35. Rxf6 {[%clk 0:01:36]}  Bxg2 {[%clk 0:01:12]} 36. Rxh6 {[%clk 0:01:36]}  Rd3 {[%clk 0:01:12]} 37. Kc2 {[%clk 0:01:22]}  Be4 {[%clk 0:01:11]} 38. Re6 {[%clk 0:01:19]}  Bf5 {[%clk 0:01:09]} 39. Rf6 {[%clk 0:01:17]}  Be4 {[%clk 0:01:03]} 40. Rf4 {[%clk 0:01:16]}  Bg6 {[%clk 0:01:01]} 41. Rf6 {[%clk 0:01:12]}  Bh7 {[%clk 0:01:00]} 42. Rf7 {[%clk 0:01:09]}  Rxh3+ {[%clk 0:00:59]} 43. Kd2 {[%clk 0:01:06]}  Rd3+ {[%clk 0:00:57]} 44. Ke2 {[%clk 0:01:03]}  Bg6 {[%clk 0:00:57]} 45. Rf6 {[%clk 0:01:01]}  Bh5+ {[%clk 0:00:57]} 46. Kf2 {[%clk 0:01:00]}  Bxd1 {[%clk 0:00:57]} 0-1


[Site "https://www.chess.com"]

[Event "Titled Tuesday Blitz November 08 Late 2022"]
[White "Van Dael, Siem"]
[Black "Paravyan, David"]
[WhiteFideId "1049771"]
[BlackFideId "4194985"]
[WhiteElo "2161"]
[BlackElo "2998"]
[Result "0-1"]
[Round "03"]
[TimeControl "180+1"]
[Date "2022.11.09"]
[WhiteClock "0:01:16"]
[BlackClock "0:01:13"]

1. e4 {[%clk 0:03:00]}  e5 {[%clk 0:02:59]} 2. Nf3 {[%clk 0:03:00]}  Nf6 {[%clk 0:02:59]} 3. Nxe5 {[%clk 0:02:55]}  d6 {[%clk 0:02:59]} 4. Nc4 {[%clk 0:02:54]}  Nxe4 {[%clk 0:02:59]} 5. Qe2 {[%clk 0:02:54]}  Qe7 {[%clk 0:02:59]} 6. Ne3 {[%clk 0:02:55]}  c6 {[%clk 0:02:59]} 7. b3 {[%clk 0:02:37]}  Be6 {[%clk 0:02:30]} 8. Bb2 {[%clk 0:02:36]}  Nd7 {[%clk 0:02:30]} 9. g3 {[%clk 0:02:37]}  O-O-O {[%clk 0:02:28]} 10. Bg2 {[%clk 0:02:37]}  d5 {[%clk 0:02:29]} 11. d3 {[%clk 0:02:30]}  Nef6 {[%clk 0:02:27]} 12. Nd2 {[%clk 0:02:28]}  h5 {[%clk 0:02:26]} 13. Nf3 {[%clk 0:02:26]}  Qb4+ {[%clk 0:02:24]} 14. Qd2 {[%clk 0:02:23]}  Qxd2+ {[%clk 0:02:23]} 15. Nxd2 {[%clk 0:02:24]}  h4 {[%clk 0:02:22]} 16. O-O-O {[%clk 0:02:23]}  Bd6 {[%clk 0:02:19]} 17. f4 {[%clk 0:02:17]}  Ng4 {[%clk 0:02:08]} 18. Nxg4 {[%clk 0:02:14]}  Bxg4 {[%clk 0:02:09]} 19. Bf3 {[%clk 0:02:14]}  Bxf3 {[%clk 0:02:09]} 20. Nxf3 {[%clk 0:02:15]}  f6 {[%clk 0:02:09]} 21. Nxh4 {[%clk 0:02:14]}  Bxf4+ {[%clk 0:02:08]} 22. Kb1 {[%clk 0:02:11]}  Be5 {[%clk 0:02:05]} 23. Ng6 {[%clk 0:02:09]}  Rh6 {[%clk 0:02:01]} 24. Nxe5 {[%clk 0:02:03]}  Nxe5 {[%clk 0:02:00]} 25. Bxe5 {[%clk 0:01:59]}  fxe5 {[%clk 0:02:01]} 26. Rdf1 {[%clk 0:01:59]}  Kc7 {[%clk 0:01:58]} 27. Rf7+ {[%clk 0:01:58]}  Rd7 {[%clk 0:01:57]} 28. Rhf1 {[%clk 0:01:58]}  Rxh2 {[%clk 0:01:56]} 29. Rxd7+ {[%clk 0:01:58]}  Kxd7 {[%clk 0:01:57]} 30. Rf7+ {[%clk 0:01:58]}  Kc8 {[%clk 0:01:57]} 31. Rxg7 {[%clk 0:01:59]}  a5 {[%clk 0:01:54]} 32. a4 {[%clk 0:01:58]}  Re2 {[%clk 0:01:53]} 33. Kc1 {[%clk 0:01:55]}  e4 {[%clk 0:01:49]} 34. dxe4 {[%clk 0:01:55]}  Rxe4 {[%clk 0:01:50]} 35. Kd2 {[%clk 0:01:54]}  Kb8 {[%clk 0:01:50]} 36. Kd3 {[%clk 0:01:54]}  Ka7 {[%clk 0:01:50]} 37. g4 {[%clk 0:01:52]}  Kb6 {[%clk 0:01:48]} 38. g5 {[%clk 0:01:52]}  Rg4 {[%clk 0:01:48]} 39. Rg8 {[%clk 0:01:51]}  Kc5 {[%clk 0:01:47]} 40. g6 {[%clk 0:01:51]}  Rg3+ {[%clk 0:01:48]} 41. Kd2 {[%clk 0:01:51]}  Kd4 {[%clk 0:01:48]} 42. Rb8 {[%clk 0:01:43]}  Rxg6 {[%clk 0:01:43]} 43. Rxb7 {[%clk 0:01:43]}  Rg2+ {[%clk 0:01:43]} 44. Kd1 {[%clk 0:01:43]}  Kc3 {[%clk 0:01:39]} 45. Rc7 {[%clk 0:01:41]}  Rd2+ {[%clk 0:01:31]} 46. Ke1 {[%clk 0:01:35]}  Rxc2 {[%clk 0:01:31]} 47. Rxc6+ {[%clk 0:01:35]}  Kxb3 {[%clk 0:01:32]} 48. Rd6 {[%clk 0:01:34]}  Rc5 {[%clk 0:01:28]} 49. Kd2 {[%clk 0:01:34]}  Kxa4 {[%clk 0:01:28]} 50. Rb6 {[%clk 0:01:29]}  Rb5 {[%clk 0:01:19]} 51. Rd6 {[%clk 0:01:24]}  Kb3 {[%clk 0:01:17]} 52. Rh6 {[%clk 0:01:21]}  a4 {[%clk 0:01:14]} 53. Rh3+ {[%clk 0:01:21]}  Kb2 {[%clk 0:01:14]} 54. Kd3 {[%clk 0:01:16]}  Rb3+ {[%clk 0:01:13]} 0-1


[Site "https://www.chess.com"]

[Event "Titled Tuesday Blitz November 08 Late 2022"]
[White "Veiga, Jose Francisco R P Neves"]
[Black "Kravtsiv, Martyn"]
[WhiteFideId "1930087"]
[BlackFideId "14113147"]
[WhiteElo "2512"]
[BlackElo "2762"]
[Result "0-1"]
[Round "03"]
[TimeControl "180+1"]
[Date "2022.11.09"]
[WhiteClock "0:00:10"]
[BlackClock "0:00:21"]

1. d4 {[%clk 0:01:59]}  d5 {[%clk 0:02:58]} 2. Nf3 {[%clk 0:01:46]}  e6 {[%clk 0:02:59]} 3. Bg5 {[%clk 0:01:45]}  f6 {[%clk 0:02:56]} 4. Bf4 {[%clk 0:01:45]}  g5 {[%clk 0:02:54]} 5. Bg3 {[%clk 0:01:46]}  h5 {[%clk 0:02:54]} 6. h4 {[%clk 0:01:42]}  g4 {[%clk 0:02:53]} 7. Nfd2 {[%clk 0:01:42]}  Nh6 {[%clk 0:02:52]} 8. e4 {[%clk 0:01:39]}  dxe4 {[%clk 0:02:48]} 9. Nxe4 {[%clk 0:01:39]}  Nf5 {[%clk 0:02:47]} 10. c3 {[%clk 0:01:39]}  Bg7 {[%clk 0:02:45]} 11. Nbd2 {[%clk 0:01:37]}  Nd7 {[%clk 0:02:41]} 12. Bd3 {[%clk 0:01:36]}  b6 {[%clk 0:02:35]} 13. Qb3 {[%clk 0:01:31]}  Qe7 {[%clk 0:02:28]} 14. Bxc7 {[%clk 0:01:28]}  Bb7 {[%clk 0:02:26]} 15. Bf4 {[%clk 0:00:52]}  O-O {[%clk 0:02:17]} 16. O-O-O {[%clk 0:00:35]}  Kh8 {[%clk 0:02:14]} 17. Kb1 {[%clk 0:00:35]}  a5 {[%clk 0:02:09]} 18. Ng3 {[%clk 0:00:35]}  a4 {[%clk 0:02:06]} 19. Qb5 {[%clk 0:00:28]}  Nxg3 {[%clk 0:02:03]} 20. fxg3 {[%clk 0:00:27]}  Ra5 {[%clk 0:02:03]} 21. Qb4 {[%clk 0:00:23]}  Qxb4 {[%clk 0:01:54]} 22. cxb4 {[%clk 0:00:24]}  Raa8 {[%clk 0:01:54]} 23. Be4 {[%clk 0:00:24]}  Bxe4+ {[%clk 0:01:39]} 24. Nxe4 {[%clk 0:00:25]}  Rfc8 {[%clk 0:01:38]} 25. Rc1 {[%clk 0:00:25]}  Bf8 {[%clk 0:01:38]} 26. a3 {[%clk 0:00:24]}  b5 {[%clk 0:01:38]} 27. Nc5 {[%clk 0:00:24]}  Bxc5 {[%clk 0:01:31]} 28. bxc5 {[%clk 0:00:25]}  Rc6 {[%clk 0:01:28]} 29. Rhe1 {[%clk 0:00:25]}  Kg7 {[%clk 0:01:28]} 30. Re2 {[%clk 0:00:25]}  Kg6 {[%clk 0:00:43]} 31. Bd6 {[%clk 0:00:25]}  e5 {[%clk 0:00:37]} 32. d5 {[%clk 0:00:24]}  Rcc8 {[%clk 0:00:36]} 33. c6 {[%clk 0:00:25]}  Nb6 {[%clk 0:00:36]} 34. Rd1 {[%clk 0:00:22]}  Rd8 {[%clk 0:00:32]} 35. Bc7 {[%clk 0:00:21]}  Rxd5 {[%clk 0:00:32]} 36. Red2 {[%clk 0:00:15]}  Rxd2 {[%clk 0:00:32]} 37. Rxd2 {[%clk 0:00:15]}  Nc4 {[%clk 0:00:32]} 38. Rd7 {[%clk 0:00:12]}  Ra6 {[%clk 0:00:32]} 39. Bd8 {[%clk 0:00:07]}  Rxc6 {[%clk 0:00:32]} 40. Be7 {[%clk 0:00:05]}  Ne3 {[%clk 0:00:31]} 41. Rd2 {[%clk 0:00:05]}  Nc4 {[%clk 0:00:29]} 42. Rd7 {[%clk 0:00:05]}  e4 {[%clk 0:00:29]} 43. Bb4 {[%clk 0:00:04]}  e3 {[%clk 0:00:28]} 44. Re7 {[%clk 0:00:04]}  Kf5 {[%clk 0:00:28]} 45. Bc3 {[%clk 0:00:05]}  Re6 {[%clk 0:00:27]} 46. Rxe6 {[%clk 0:00:05]}  Kxe6 {[%clk 0:00:27]} 47. Kc2 {[%clk 0:00:06]}  f5 {[%clk 0:00:23]} 48. Kd3 {[%clk 0:00:06]}  Kd5 {[%clk 0:00:23]} 49. Bb4 {[%clk 0:00:06]}  Nxb2+ {[%clk 0:00:19]} 50. Kxe3 {[%clk 0:00:07]}  Kc4 {[%clk 0:00:20]} 51. Kf4 {[%clk 0:00:07]}  Nd3+ {[%clk 0:00:20]} 52. Kxf5 {[%clk 0:00:06]}  Nxb4 {[%clk 0:00:21]} 53. axb4 {[%clk 0:00:07]}  a3 {[%clk 0:00:20]} 54. Kg5 {[%clk 0:00:08]}  a2 {[%clk 0:00:21]} 55. Kxh5 {[%clk 0:00:09]}  a1=Q {[%clk 0:00:21]} 56. Kxg4 {[%clk 0:00:10]} 0-1


[Site "https://www.chess.com"]